fUSD/lending_fUSD_20240526
["ID","MTS","AMOUNT","RATE_DAILY","PERIOD"]
[327940819,1716689442140,-698.16486606,0.0002796,2]
[327940820,1716689442150,-206.05375945,0.0002796,2]
[327940821,1716689442160,-628.41873667,0.00027961,2]
[327940822,1716689442169,-1200.18937864,0.00027961,2]
[327940823,1716689442178,-2156.0882,0.00027961,2]
[327940824,1716689442188,-678.12201844,0.00027961,2]
[327940825,1716689442197,-718.4720498,0.00027962,14]
[327940826,1716689442207,-198.98157362,0.00027962,2]
[327940827,1716689442217,-150.0,0.00027977,2]
[327940828,1716689442227,-150.0,0.00027979,2]
[327940829,1716689442236,-1500.0,0.00027985,2]
[327940830,1716689442245,-300.0,0.00027987,2]
[327940831,1716689442255,-150.0,0.00027993,2]
[327940832,1716689442264,-150.0,0.00027997,2]
[327940833,1716689442274,-300.0,0.00027998,2]
[327940834,1716689442284,-155.0,0.00028,2]
[327940835,1716689442294,-7859.86454775,0.00028,2]
[327940836,1716689442304,-1177.30102,0.00028,2]
[327940837,1716689442313,-3503.39,0.00028,3]
[327940838,1716689442323,-301.0,0.00028014,5]
[327940839,1716689442332,-150.0,0.00028015,2]
[327940840,1716689442342,-300.0,0.00028029,2]
[327940841,1716689442351,-1016.73642416,0.00028039,2]
[327940842,1716689442360,-150.0,0.00028041,2]
[327940843,1716689442369,-300.0,0.00028052,2]
[327940844,1716689442379,-1500.0,0.00028055,2]
[327940845,1716689442388,-1500.0,0.00028055,2]
[327940846,1716689442397,-150.0,0.00028067,2]
[327940847,1716689442407,-287.8014276,0.00028071,2]
[327940848,1716689442416,-150.0,0.00028087,2]
[327940849,1716689442426,-150.0,0.00028095,2]
[327940850,1716689442438,-1500.0,0.00028098,2]
[327940851,1716689442447,-188.12050777,0.00028101,2]
[327940852,1716689442457,-150.0,0.00028122,2]
[327940853,1716689442466,-300.0,0.00028122,2]
[327940854,1716689442476,-150.0,0.00028127,2]
[327940855,1716689442486,-150.0,0.00028144,2]
[327940856,1716689442495,-150.0,0.00028165,2]
[327940857,1716689442504,-150.0,0.00028172,2]
[327940858,1716689442516,-150.0,0.00028173,2]
[327940859,1716689442527,-150.0,0.00028174,2]
[327940860,1716689442536,-1500.0,0.00028178,2]
[327940861,1716689442546,-314.71743852,0.00028187,2]
[327940862,1716689442555,-150.0,0.00028188,2]
[327940863,1716689442565,-300.0,0.000282,2]
[327940864,1716689442575,-150.0,0.00028208,2]
[327940865,1716689442585,-150.0,0.00028212,2]
[327940866,1716689442595,-300.0,0.00028217,2]
[327940867,1716689442605,-150.0,0.00028227,2]
[327940868,1716689442614,-150.0,0.00028229,2]
[327940869,1716689442623,-150.0,0.00028238,2]
[327940870,1716689442632,-150.0,0.00028239,2]
[327940871,1716689442643,-300.0,0.00028256,2]
[327940872,1716689442652,-150.0,0.0002826,2]
[327940873,1716689442661,-210.66410375,0.00028261,5]
[327940874,1716689442671,-300.0,0.00028265,2]
[327940875,1716689442680,-150.0,0.00028273,2]
[327940876,1716689442689,-300.0,0.00028291,2]
[327940877,1716689442699,-150.0,0.00028292,2]
[327940878,1716689442708,-300.0,0.00028293,2]
[327940879,1716689442718,-6315.30563994,0.00028296,2]
[327940880,1716689442727,-155.3073518,0.000283,4]
[327940881,1716689442737,-150.0,0.00028304,2]
[327940882,1716689442746,-150.0,0.00028311,2]
[327940883,1716689442756,-150.0,0.00028329,2]
[327940884,1716689442765,-150.0,0.00028332,2]
[327940885,1716689442775,-150.0,0.00028332,2]
[327940886,1716689442784,-1185.28256148,0.00028337,2]
[327940887,1716689442794,-150.0,0.0002834,2]
[327940889,1716689442803,-150.0,0.00028351,2]
[327940891,1716689442813,-150.0,0.00028351,2]
[327940893,1716689442822,-1500.0,0.00028352,2]
[327940896,1716689442831,-300.0,0.00028358,2]
[327940899,1716689442841,-300.0,0.00028365,2]
[327940902,1716689442850,-300.0,0.00028366,2]
[327940905,1716689442859,-240.22228807,0.00028373,2]
[327940909,1716689442869,-150.0,0.00028396,2]
[327940913,1716689442878,-150.0,0.00028413,2]
[327940915,1716689442888,-150.0,0.0002842,2]
[327940917,1716689442897,-150.0,0.00028432,2]
[327940919,1716689442906,-150.0,0.00028434,2]
[327940921,1716689442916,-1500.0,0.00028443,2]
[327940922,1716689442925,-150.0,0.00028449,2]
[327940923,1716689442934,-170.59,0.00028454,2]
[327940924,1716689442943,-150.0,0.00028454,2]
[327940925,1716689442952,-150.0,0.0002846,2]
[327940926,1716689442962,-1700.22450244,0.00028467,2]
[327940927,1716689442970,-1500.0,0.00028471,2]
[327940928,1716689442979,-150.0,0.00028472,2]
[327940929,1716689442988,-595.73,0.00028476,2]
[327940930,1716689442997,-150.0,0.00028486,2]
[327940931,1716689443006,-1500.0,0.00028493,2]
[327940932,1716689443015,-150.0,0.00028502,2]
[327940933,1716689443024,-150.0,0.00028517,2]
[327940934,1716689443033,-150.0,0.00028524,2]
[327940935,1716689443043,-300.0,0.00028534,2]
[327940936,1716689443052,-150.0,0.00028537,2]
[327940937,1716689443061,-150.0,0.00028538,2]
[327940938,1716689443070,-1185.28256148,0.0002854,2]
[327940939,1716689443079,-150.0,0.00028546,2]
[327940940,1716689443088,-300.0,0.0002856,2]
[327940941,1716689443097,-150.0,0.00028562,2]
[327940942,1716689443106,-300.0,0.00028568,2]
[327940943,1716689443115,-1500.0,0.00028568,2]
[327940944,1716689443124,-300.0,0.00028571,2]
[327940945,1716689443134,-150.0,0.00028574,2]
[327940946,1716689443144,-150.0,0.0002858,2]
[327940947,1716689443153,-150.0,0.00028586,2]
[327940948,1716689443162,-33490.33968827,0.000286,2]
[327940949,1716689443171,-1500.0,0.00028615,2]
[327940950,1716689443180,-304.0013908,0.0002863,2]
[327940951,1716689443189,-1500.0,0.00028637,2]
[327940952,1716689443198,-300.0,0.00028638,2]
[327940953,1716689443207,-506.66,0.00028647,2]
[327940954,1716689443217,-200.0,0.00028649,2]
[327940955,1716689443226,-500.0,0.00028649,2]
[327940956,1716689443234,-150.0,0.00028651,2]
[327940957,1716689443244,-150.0,0.00028653,2]
[327940958,1716689443253,-150.0,0.00028662,2]
[327940961,1716689443410,-300.0,0.00028663,2]
[327940962,1716689443420,-150.0,0.00028664,2]
[327940963,1716689443429,-150.0,0.00028672,2]
[327940964,1716689443443,-150.0,0.00028674,2]
[327940965,1716689443452,-300.0,0.00028675,2]
[327940966,1716689443463,-150.0,0.0002868,2]
[327940967,1716689443472,-300.0,0.00028685,2]
[327940968,1716689443482,-150.0,0.00028685,2]
[327940969,1716689443491,-150.0,0.0002869,2]
[327940970,1716689443501,-150.0,0.00028696,2]
[327940971,1716689443511,-150.0,0.00028701,2]
[327940972,1716689443520,-1500.0,0.00028728,2]
[327940973,1716689443529,-3903.0381456,0.00028731,2]
[327940974,1716689443538,-151.5,0.00028733,2]
[327940975,1716689443547,-150.0,0.00028739,2]
[327940976,1716689443556,-7500.0,0.00028743,2]
[327940977,1716689443575,-150.0,0.00028751,2]
[327940978,1716689443587,-150.0,0.00028753,2]
[327940979,1716689443596,-150.0,0.0002876,2]
[327940980,1716689443607,-150.0,0.0002876,2]
[327940981,1716689443616,-652.61194826,0.00028768,2]
[327940982,1716689443626,-757.14046296,0.00028769,2]
[327940983,1716689443636,-1000.0,0.0002877,2]
[327940984,1716689443646,-150.0,0.00028771,2]
[327940985,1716689443656,-1500.0,0.00028776,2]
[327940986,1716689443666,-300.0,0.00028778,2]
[327940987,1716689443676,-7641.50522569,0.00028778,2]
[327940988,1716689443686,-684.28387357,0.00028778,2]
[327940989,1716689443696,-174.30997393,0.00028778,2]
[327940990,1716689443707,-3914.74329635,0.00028778,2]
[327940991,1716689443718,-150.0,0.00028779,2]
[327940992,1716689443728,-150.0,0.00028779,2]
[327940993,1716689443738,-12874.97630015,0.0002878,2]
[327940994,1716689443747,-11604.32610451,0.0002878,2]
[327940995,1716689443757,-346.81160792,0.0002878,2]
[327940996,1716689443767,-171.87288558,0.0002878,2]
[327940997,1716689443777,-150.0,0.0002878,2]
[327940998,1716689443787,-1500.0,0.00028784,2]
[327940999,1716689443797,-2000.0,0.000288,2]
[327941000,1716689443806,-2000.0,0.000288,2]
[327941001,1716689443816,-160.0,0.000288,2]
[327941002,1716689443826,-500.0,0.000288,13]
[327941003,1716689443836,-150.0,0.000288,2]
[327941004,1716689443846,-189.0,0.000288,13]
[327941005,1716689443856,-1009.26,0.000288,2]
[327941006,1716689443866,-275.5,0.000288,2]
[327941007,1716689443876,-304.62,0.000288,2]
[327941008,1716689443886,-150.0,0.000288,6]
[327941009,1716689443896,-500.0,0.00028804,2]
[327941010,1716689443907,-150.0,0.0002881,2]
[327941011,1716689443916,-500.0,0.00028813,2]
[327941012,1716689443926,-1500.0,0.00028816,2]
[327941013,1716689443937,-150.0,0.00028819,2]
[327941014,1716689443947,-500.0,0.00028822,2]
[327941015,1716689443957,-150.0,0.00028822,2]
[327941016,1716689443968,-150.0,0.00028823,2]
[327941017,1716689443977,-150.0,0.00028824,2]
[327941018,1716689443987,-150.0,0.00028825,2]
[327941019,1716689443998,-500.0,0.00028831,2]
[327941020,1716689444008,-1500.0,0.00028835,2]
[327941021,1716689444018,-150.0,0.00028839,2]
[327941022,1716689444029,-500.0,0.0002884,2]
[327941023,1716689444039,-500.0,0.00028848,2]
[327941024,1716689444049,-360.472833,0.00028849,7]
[327941025,1716689444059,-360.472833,0.00028849,7]
[327941026,1716689444070,-150.0,0.00028855,2]
[327941027,1716689444079,-1500.0,0.00028857,2]
[327941028,1716689444089,-500.0,0.00028857,2]
[327941029,1716689444100,-160.0,0.0002886,2]
[327941030,1716689444110,-16000.0,0.00028864,2]
[327941031,1716689444121,-151.0,0.00028864,7]
[327941032,1716689444131,-151.0,0.00028864,7]
[327941033,1716689444141,-151.0,0.00028864,7]
[327941034,1716689444151,-152.772206,0.00028864,7]
[327941035,1716689444161,-151.0,0.00028864,7]
[327941036,1716689444171,-151.0,0.00028864,7]
[327941037,1716689444186,-478.38845,0.00028864,7]
[327941038,1716689444197,-478.38845,0.00028864,7]
[327941039,1716689444207,-206.332353,0.00028864,7]
[327941040,1716689444218,-151.0,0.00028864,7]
[327941041,1716689444228,-206.332353,0.00028864,7]
[327941042,1716689444239,-151.0,0.00028864,7]
[327941043,1716689444248,-151.0,0.00028864,7]
[327941044,1716689444259,-707.351907,0.00028864,7]
[327941045,1716689444269,-707.351907,0.00028864,7]
[327941046,1716689444279,-256.24099,0.00028864,7]
[327941047,1716689444289,-604.074004,0.00028864,7]
[327941048,1716689444300,-151.0,0.00028864,7]
[327941049,1716689444312,-151.0,0.00028864,7]
[327941050,1716689444323,-151.0,0.00028864,7]
[327941051,1716689444335,-604.074004,0.00028864,7]
[327941052,1716689444345,-677.730599,0.00028864,7]
[327941053,1716689444355,-677.730599,0.00028864,7]
[327941054,1716689444365,-291.886785,0.00028864,7]
[327941055,1716689444375,-291.886785,0.00028864,7]
[327941056,1716689444385,-200.441289,0.00028864,7]
[327941057,1716689444395,-200.441289,0.00028864,7]
[327941058,1716689444404,-1526.097228,0.00028864,7]
[327941059,1716689444414,-151.0,0.00028864,7]
[327941060,1716689444424,-240.465049,0.00028864,7]
[327941061,1716689444438,-1526.097228,0.00028864,7]
[327941062,1716689444448,-151.0,0.00028864,7]
[327941063,1716689444458,-151.0,0.00028864,7]
[327941064,1716689444469,-240.465049,0.00028864,7]
[327941065,1716689444480,-895.823875,0.00028864,7]
[327941066,1716689444489,-151.0,0.00028864,7]
[327941067,1716689444500,-165.185865,0.00028864,7]
[327941068,1716689444510,-895.823875,0.00028864,7]
[327941069,1716689444523,-301.46956,0.00028864,7]
[327941070,1716689444534,-165.185865,0.00028864,7]
[327941071,1716689444545,-151.0,0.00028864,7]
[327941072,1716689444556,-182.026073,0.00028864,7]
[327941073,1716689444566,-182.026073,0.00028864,7]
[327941074,1716689444577,-1335.529215,0.00028864,7]
[327941075,1716689444588,-1335.529215,0.00028864,7]
[327941076,1716689444599,-323.013842,0.00028864,7]
[327941077,1716689444609,-323.013842,0.00028864,7]
[327941078,1716689444620,-156.098843,0.00028864,7]
[327941079,1716689444631,-7984.781388,0.00028864,7]
[327941080,1716689444641,-151.0,0.00028864,7]
[327941081,1716689444651,-7984.781388,0.00028864,7]
[327941082,1716689444662,-151.0,0.00028864,7]
[327941083,1716689444672,-151.0,0.00028864,7]
[327941084,1716689444682,-151.0,0.00028864,7]
[327941085,1716689444692,-151.0,0.00028864,7]
[327941086,1716689444703,-151.0,0.00028864,7]
[327941087,1716689444715,-151.0,0.00028864,7]
[327941088,1716689444726,-193.509332,0.00028864,7]
[327941089,1716689444737,-193.509332,0.00028864,7]
[327941090,1716689444748,-500.0,0.00028866,2]
[327941091,1716689444759,-150.0,0.00028868,2]
[327941092,1716689444770,-300.0,0.00028868,2]
[327941093,1716689444781,-151.0,0.00028869,7]
[327941094,1716689444792,-151.0,0.00028869,7]
[327941095,1716689444802,-221.720246,0.00028869,7]
[327941096,1716689444814,-258.858072,0.00028869,7]
[327941097,1716689444826,-258.858072,0.00028869,7]
[327941098,1716689444837,-4410.7623394,0.00028869,2]
[327941099,1716689444848,-1317.756576,0.00028869,7]
[327941100,1716689444859,-1317.756576,0.00028869,7]
[327941101,1716689444869,-151.0,0.00028869,7]
[327941102,1716689444880,-251.568921,0.00028869,7]
[327941103,1716689444890,-251.568921,0.00028869,7]
[327941104,1716689444901,-151.0,0.00028869,7]
[327941105,1716689444911,-151.0,0.00028869,7]
[327941106,1716689444922,-405.0072565,0.00028869,2]
[327941107,1716689444933,-151.0,0.00028869,7]
[327941108,1716689444944,-155.225501,0.00028869,7]
[327941109,1716689444954,-151.0,0.00028869,7]
[327941110,1716689444965,-155.225501,0.00028869,7]
[327941111,1716689444976,-151.0,0.00028869,7]
[327941112,1716689444986,-520.96204196,0.00028869,2]
[327941113,1716689444997,-541.236568,0.00028869,7]
[327941114,1716689445007,-541.236568,0.00028869,7]
[327941115,1716689445018,-151.0,0.00028869,7]
[327941116,1716689445028,-766.105193,0.00028869,7]
[327941117,1716689445038,-151.0,0.00028869,7]
[327941118,1716689445048,-766.105193,0.00028869,7]
[327941119,1716689445058,-151.0,0.00028869,7]
[327941120,1716689445068,-153.698278,0.00028869,7]
[327941121,1716689445078,-1450.2965541,0.00028869,2]
[327941122,1716689445089,-1550.3283881,0.00028869,2]
[327941123,1716689445100,-27884.4073349,0.00028869,2]
[327941124,1716689445111,-28995.263472,0.00028869,2]
[327941125,1716689445121,-407.4112546,0.00028869,2]
[327941126,1716689445132,-151.0,0.00028869,7]
[327941127,1716689445142,-550.3836303,0.00028869,2]
[327941128,1716689445153,-193.438553,0.00028869,7]
[327941129,1716689445163,-193.438553,0.00028869,7]
[327941130,1716689445174,-150.0,0.00028869,2]
[327941131,1716689445185,-160.0,0.00028869,2]
[327941132,1716689445195,-16000.0,0.00028873,2]
[327941133,1716689445206,-12803.02123964,0.00028875,2]
[327941134,1716689445217,-500.0,0.00028875,2]
[327941135,1716689445228,-410.64598546,0.00028878,2]
[327941136,1716689445239,-155.27563189,0.00028878,2]
[327941137,1716689445249,-31477.0,0.00028878,7]
[327941138,1716689445259,-160.0,0.00028878,2]
[327941139,1716689445269,-151.0,0.00028878,7]
[327941140,1716689445280,-151.0,0.00028878,7]
[327941141,1716689445290,-151.0,0.00028878,7]
[327941142,1716689445301,-151.0,0.00028878,7]
[327941143,1716689445311,-151.0,0.00028878,7]
[327941144,1716689445321,-151.0,0.00028878,7]
[327941145,1716689445332,-151.0,0.00028878,7]
[327941146,1716689445342,-184.784921,0.00028878,7]
[327941147,1716689445352,-151.0,0.00028878,7]
[327941148,1716689445363,-151.0,0.00028878,7]
[327941149,1716689445373,-151.0,0.00028878,7]
[327941150,1716689445383,-1042.325451,0.00028878,7]
[327941151,1716689445393,-151.0,0.00028878,7]
[327941152,1716689445403,-151.0,0.00028878,7]
[327941153,1716689445414,-151.0,0.00028878,7]
[327941154,1716689445424,-153.645092,0.00028878,7]
[327941155,1716689445435,-151.0,0.00028878,7]
[327941156,1716689445449,-151.0,0.00028878,7]
[327941157,1716689445459,-195.439331,0.00028878,7]
[327941158,1716689445471,-195.439331,0.00028878,7]
[327941159,1716689445482,-151.0,0.00028878,7]
[327941160,1716689445493,-885.357674,0.00028878,7]
[327941161,1716689445504,-885.357674,0.00028878,7]
[327941162,1716689445516,-799.110548,0.00028878,7]
[327941163,1716689445526,-799.110548,0.00028878,7]
[327941164,1716689445536,-360.472833,0.00028878,7]
[327941165,1716689445547,-360.472833,0.00028878,7]
[327941166,1716689445557,-1312.443375,0.00028878,7]
[327941167,1716689445567,-1312.443375,0.00028878,7]
[327941168,1716689445578,-319.818968,0.00028878,7]
[327941169,1716689445588,-319.818968,0.00028878,7]
[327941170,1716689445598,-151.0,0.00028878,7]
[327941171,1716689445608,-151.0,0.00028878,7]
[327941172,1716689445618,-236.788383,0.00028878,7]
[327941173,1716689445628,-236.788383,0.00028878,7]
[327941174,1716689445638,-151.0,0.00028878,7]
[327941175,1716689445648,-151.0,0.00028878,7]
[327941176,1716689445658,-151.0,0.00028878,7]
[327941177,1716689445909,-151.0,0.00028878,7]
[327941178,1716689445920,-151.0,0.00028878,7]
[327941179,1716689445929,-151.0,0.00028878,7]
[327941180,1716689445938,-151.0,0.00028878,7]
[327941181,1716689445947,-151.0,0.00028878,7]
[327941182,1716689445957,-478.38845,0.00028878,7]
[327941183,1716689445966,-478.38845,0.00028878,7]
[327941184,1716689445975,-206.332353,0.00028878,7]
[327941185,1716689445985,-151.0,0.00028878,7]
[327941186,1716689445994,-206.332353,0.00028878,7]
[327941187,1716689446004,-151.0,0.00028878,7]
[327941188,1716689446014,-151.0,0.00028878,7]
[327941189,1716689446023,-707.351907,0.00028878,7]
[327941190,1716689446033,-707.351907,0.00028878,7]
[327941191,1716689446042,-604.074004,0.00028878,7]
[327941192,1716689446052,-151.0,0.00028878,7]
[327941193,1716689446062,-151.0,0.00028878,7]
[327941194,1716689446072,-151.0,0.00028878,7]
[327941195,1716689446081,-604.074004,0.00028878,7]
[327941196,1716689446091,-677.730599,0.00028878,7]
[327941197,1716689446101,-677.730599,0.00028878,7]
[327941198,1716689446110,-291.886785,0.00028878,7]
[327941199,1716689446119,-291.886785,0.00028878,7]
[327941200,1716689446129,-200.441289,0.00028878,7]
[327941201,1716689446138,-200.441289,0.00028878,7]
[327941202,1716689446148,-1526.097228,0.00028878,7]
[327941203,1716689446157,-151.0,0.00028878,7]
[327941204,1716689446166,-240.465049,0.00028878,7]
[327941205,1716689446176,-1526.097228,0.00028878,7]
[327941206,1716689446186,-151.0,0.00028878,7]
[327941207,1716689446196,-151.0,0.00028878,7]
[327941208,1716689446205,-240.465049,0.00028878,7]
[327941209,1716689446215,-895.823875,0.00028878,7]
[327941210,1716689446224,-151.0,0.00028878,7]
[327941211,1716689446234,-165.185865,0.00028878,7]
[327941212,1716689446243,-895.823875,0.00028878,7]
[327941213,1716689446252,-165.185865,0.00028878,7]
[327941214,1716689446262,-151.0,0.00028878,7]
[327941215,1716689446272,-182.026073,0.00028878,7]
[327941216,1716689446281,-182.026073,0.00028878,7]
[327941217,1716689446291,-1335.529215,0.00028878,7]
[327941218,1716689446300,-1335.529215,0.00028878,7]
[327941219,1716689446309,-323.013842,0.00028878,7]
[327941220,1716689446319,-323.013842,0.00028878,7]
[327941221,1716689446328,-7984.781388,0.00028878,7]
[327941222,1716689446337,-151.0,0.00028878,7]
[327941223,1716689446346,-7984.781388,0.00028878,7]
[327941224,1716689446356,-151.0,0.00028878,7]
[327941226,1716689446365,-151.0,0.00028878,7]
[327941228,1716689446375,-151.0,0.00028878,7]
[327941230,1716689446384,-151.0,0.00028878,7]
[327941232,1716689446393,-151.0,0.00028878,7]
[327941235,1716689446403,-193.509332,0.00028878,7]
[327941237,1716689446412,-151.0,0.00028878,7]
[327941238,1716689446422,-193.509332,0.00028878,7]
[327941240,1716689446431,-193.438553,0.00028878,7]
[327941242,1716689446446,-193.438553,0.00028878,7]
[327941245,1716689446455,-473.08704461,0.00028879,2]
[327941247,1716689446464,-245.66333261,0.00028879,2]
[327941249,1716689446474,-2896.40323416,0.00028879,2]
[327941251,1716689446485,-2500.0,0.00028879,5]
[327941253,1716689446494,-2500.0,0.00028879,5]
[327941255,1716689446504,-2500.0,0.00028879,5]
[327941257,1716689446515,-2500.0,0.00028879,5]
[327941258,1716689446524,-2500.0,0.00028879,5]
[327941261,1716689446538,-2500.0,0.00028879,5]
[327941263,1716689446548,-2500.0,0.00028879,5]
[327941265,1716689446558,-2500.0,0.00028879,5]
[327941267,1716689446568,-2500.0,0.00028879,5]
[327941269,1716689446578,-503.62403866,0.00028879,5]
[327941271,1716689446587,-2500.0,0.00028879,5]
[327941273,1716689446597,-2500.0,0.00028879,5]
[327941275,1716689446607,-871.70639323,0.00028879,5]
[327941277,1716689446616,-2000.0,0.00028879,7]
[327941280,1716689446626,-2000.0,0.00028879,7]
[327941282,1716689446636,-2000.0,0.00028879,7]
[327941284,1716689446645,-2000.0,0.00028879,7]
[327941286,1716689446655,-2000.0,0.00028879,7]
[327941288,1716689446665,-2000.0,0.00028879,7]
[327941290,1716689446674,-2000.0,0.00028879,7]
[327941292,1716689446684,-1016.82242923,0.00028879,7]
[327941294,1716689446696,-1159510.99392462,0.0002888,2]
[327941296,1716689446706,-151.0,0.0002888,7]
[327941298,1716689446716,-206.0,0.0002888,2]
[327941300,1716689446726,-206.0,0.0002888,2]
[327941302,1716689446736,-206.0,0.0002888,2]
[327941304,1716689446745,-206.0,0.0002888,2]
[327941306,1716689446755,-206.0,0.0002888,2]
[327941308,1716689446765,-206.0,0.0002888,2]
[327941310,1716689446774,-231.0,0.0002888,2]
[327941312,1716689446784,-206.0,0.0002888,2]
[327941314,1716689446794,-206.0,0.0002888,2]
[327941316,1716689446804,-206.0,0.0002888,2]
[327941318,1716689446814,-206.0,0.0002888,2]
[327941320,1716689446823,-206.0,0.0002888,2]
[327941322,1716689446833,-206.0,0.0002888,2]
[327941324,1716689446843,-206.0,0.0002888,2]
[327941326,1716689446853,-206.0,0.0002888,2]
[327941328,1716689446863,-160.95835778,0.0002888,2]
[327941330,1716689446872,-208.0,0.0002888,2]
[327941332,1716689446882,-208.0,0.0002888,2]
[327941336,1716689446907,-208.0,0.0002888,2]
[327941339,1716689446926,-208.0,0.0002888,2]
[327941342,1716689446945,-217.0,0.0002888,2]
[327941345,1716689446968,-217.0,0.0002888,2]
[327941349,1716689446987,-220.0,0.0002888,2]
[327941352,1716689447008,-220.0,0.0002888,2]
[327941355,1716689447026,-220.0,0.0002888,2]
[327941357,1716689447040,-220.0,0.0002888,2]
[327941360,1716689447059,-220.0,0.0002888,2]
[327941364,1716689447079,-220.0,0.0002888,2]
[327941366,1716689447095,-220.0,0.0002888,2]
[327941368,1716689447110,-151.0,0.0002888,7]
[327941369,1716689447126,-151.0,0.0002888,7]
[327941370,1716689447141,-151.0,0.0002888,7]
[327941371,1716689447157,-959.50786936,0.0002888,2]
[327941372,1716689447172,-200.0,0.0002888,2]
[327941373,1716689447193,-151.0,0.0002888,7]
[327941374,1716689447214,-151.0,0.0002888,7]
[327941375,1716689447233,-151.0,0.0002888,7]
[327941376,1716689447250,-151.0,0.0002888,7]
[327941377,1716689447267,-179.06588,0.0002888,7]
[327941378,1716689447292,-151.0,0.0002888,7]
[327941379,1716689447308,-151.0,0.0002888,7]
[327941380,1716689447324,-151.0,0.0002888,7]
[327941381,1716689447340,-151.0,0.0002888,7]
[327941382,1716689447355,-151.0,0.0002888,7]
[327941383,1716689447370,-184.784921,0.0002888,7]
[327941384,1716689447385,-151.0,0.0002888,7]
[327941385,1716689447401,-151.0,0.0002888,7]
[327941386,1716689447416,-151.0,0.0002888,7]
[327941387,1716689447432,-1042.325451,0.0002888,7]
[327941388,1716689447451,-151.0,0.0002888,7]
[327941389,1716689447467,-151.0,0.0002888,7]
[327941390,1716689447483,-151.0,0.0002888,7]
[327941391,1716689447498,-151.0,0.0002888,7]
[327941392,1716689447514,-151.0,0.0002888,7]
[327941393,1716689447529,-195.439331,0.0002888,7]
[327941394,1716689447544,-195.439331,0.0002888,7]
[327941395,1716689447559,-151.0,0.0002888,7]
[327941396,1716689447574,-885.357674,0.0002888,7]
[327941397,1716689447589,-885.357674,0.0002888,7]
[327941398,1716689447605,-799.110548,0.0002888,7]
[327941399,1716689447621,-799.110548,0.0002888,7]
[327941400,1716689447636,-360.472833,0.0002888,7]
[327941401,1716689447651,-360.472833,0.0002888,7]
[327941402,1716689447666,-1312.443375,0.0002888,7]
[327941403,1716689447682,-1312.443375,0.0002888,7]
[327941404,1716689447697,-319.818968,0.0002888,7]
[327941405,1716689447712,-319.818968,0.0002888,7]
[327941406,1716689447730,-151.0,0.0002888,7]
[327941407,1716689447745,-151.0,0.0002888,7]
[327941408,1716689447760,-236.788383,0.0002888,7]
[327941409,1716689447775,-236.788383,0.0002888,7]
[327941410,1716689447790,-151.0,0.0002888,7]
[327941411,1716689447805,-151.0,0.0002888,7]
[327941412,1716689447820,-151.0,0.0002888,7]
[327941413,1716689447835,-151.0,0.0002888,7]
[327941414,1716689447850,-151.0,0.0002888,7]
[327941415,1716689447864,-151.0,0.0002888,7]
[327941416,1716689447878,-258.858072,0.0002888,7]
[327941417,1716689447893,-258.858072,0.0002888,7]
[327941418,1716689447907,-151.0,0.0002888,7]
[327941419,1716689447922,-258.858072,0.0002888,7]
[327941420,1716689447936,-258.858072,0.0002888,7]